fUSD/lending_fUSD_20240616
["ID","MTS","AMOUNT","RATE_DAILY","PERIOD"]
[329673128,1718562640595,-151.0,0.00027577,7]
[329673130,1718562640614,-151.0,0.00027577,7]
[329673131,1718562640636,-151.0,0.00027577,7]
[329673132,1718562640648,-151.0,0.00027577,7]
[329673133,1718562640674,-151.0,0.00027577,7]
[329673134,1718562640687,-151.0,0.00027577,7]
[329673135,1718562640698,-284.292489,0.00027577,7]
[329673136,1718562640713,-151.0,0.00027577,7]
[329673137,1718562640741,-151.0,0.00027577,7]
[329673138,1718562640752,-284.292489,0.00027577,7]
[329673139,1718562640767,-151.0,0.00027577,7]
[329673140,1718562640780,-302.657544,0.00027577,7]
[329673141,1718562640794,-302.657544,0.00027577,7]
[329673142,1718562640820,-178.57038077,0.00027578,2]
[329673143,1718562640832,-11613.62663101,0.00027579,2]
[329673144,1718562640846,-1031.61905799,0.0002758,2]
[329673145,1718562640858,-327.62027803,0.00027584,2]
[329673146,1718562640870,-229.84716175,0.00027586,2]
[329673147,1718562640920,-150.0,0.00027588,2]
[329673148,1718562640933,-327.62027803,0.00027589,2]
[329673149,1718562640945,-150.0,0.00027591,2]
[329673150,1718562640968,-11613.62663101,0.00027595,2]
[329673151,1718562640982,-327.62027803,0.00027597,2]
[329673152,1718562640993,-11613.62663101,0.00027598,2]
[329673153,1718562641040,-150.20591721,0.00027598,2]
[329673154,1718562641052,-1031.61905799,0.00027598,2]
[329673155,1718562641091,-229.84716175,0.00027614,2]
[329673156,1718562641102,-1031.61905799,0.00027616,2]
[329673157,1718562641117,-150.0,0.0002762,2]
[329673158,1718562641140,-1031.61905799,0.00027634,2]
[329673159,1718562641165,-229.84716175,0.00027642,2]
[329673160,1718562641184,-1031.61905799,0.00027652,2]
[329673161,1718562641202,-150.0,0.00027656,2]
[329673162,1718562641232,-2715.0147,0.00027659,2]
[329673163,1718562641246,-931.1465,0.0002766,2]
[329673164,1718562641260,-9016.1602,0.0002766,2]
[329673165,1718562641271,-500.0,0.0002766,2]
[329673166,1718562641337,-5126.0387,0.0002766,2]
[329673167,1718562641352,-289.7265,0.0002766,2]
[329673168,1718562641366,-219.6763,0.0002766,2]
[329673169,1718562641385,-151.0,0.0002766,7]
[329673170,1718562641396,-151.593538,0.0002766,7]
[329673171,1718562641408,-151.0,0.0002766,7]
[329673172,1718562641422,-151.0,0.0002766,7]
[329673173,1718562641438,-151.0,0.0002766,7]
[329673174,1718562641452,-151.0,0.0002766,7]
[329673175,1718562641467,-150.0,0.0002766,2]
[329673176,1718562641481,-1379.6012,0.00027662,2]
[329673177,1718562641507,-215.0,0.00027662,2]
[329673178,1718562641520,-173.58441746,0.00027662,2]
[329673179,1718562641537,-429.50745894,0.00027662,2]
[329673180,1718562641560,-263.42284993,0.00027662,2]
[329673181,1718562641571,-429.50745892,0.00027666,2]
[329673182,1718562641584,-500.0,0.00027669,8]
[329673183,1718562641597,-500.0,0.00027669,8]
[329673184,1718562641611,-500.0,0.00027669,8]
[329673185,1718562641624,-500.0,0.00027669,8]
[329673186,1718562641637,-173.58441746,0.0002767,2]
[329673187,1718562641650,-1031.61905799,0.0002767,2]
[329673188,1718562641674,-326.23244424,0.0002767,2]
[329673189,1718562641686,-429.50745892,0.0002767,2]
[329673190,1718562641697,-229.84716175,0.0002767,2]
[329673191,1718562641710,-159.284238,0.00027671,14]
[329673192,1718562641727,-150.0,0.00027675,2]
[329673193,1718562641746,-2000.0,0.000277,2]
[329673194,1718562641767,-309.0,0.000277,2]
[329673195,1718562641779,-160.0,0.000277,2]
[329673196,1718562641794,-342.12626539,0.00027757,13]
[329673197,1718562641807,-117860.4631751,0.00027757,2]
[329673198,1718562642332,-1449.16849372,0.00027757,2]
[329673201,1718562643643,-201.6567933,0.00027747,2]
[329673202,1718562643657,-1091.20413615,0.00027757,2]
[329673203,1718562643672,-307.3,0.00027757,2]
[329673206,1718562644624,-460.44927101,0.00027757,2]
[329673534,1718562653091,-226.81877563,0.00020816,2]
[329673536,1718562653110,-660.71925851,0.00027757,2]
[329673538,1718562653173,-405.45754419,0.00027757,2]
[329673548,1718562653304,-909.3307162,0.00027757,2]
[329673550,1718562653345,-696.5591496,0.00027757,2]
[329673553,1718562653387,-2705.41526615,0.00027757,2]
[329673674,1718562677025,543.38783253,0.00017259,2]
[329673675,1718562680354,3103.68021662,0.00017259,2]
[329673676,1718562700763,155.0,0.00017259,2]
[329673677,1718562708072,283.24040768,0.00017259,2]
[329673678,1718562715326,650.30060485,0.00018,2]
[329673679,1718562735017,491.10975792,0.00017259,2]
[329673680,1718562737545,621.86765706,0.00017259,2]
[329673681,1718562743545,8428.94573219,0.00017259,2]
[329673682,1718562745845,659.66986258,0.00017259,2]
[329673683,1718562747334,155.0,0.00017259,2]
[329673684,1718562749116,793.21543571,0.00017258,2]
[329673685,1718562780879,296.16162819,0.00017259,2]
[329673686,1718562824803,357397.73370579,0.00014,2]
[329673687,1718562849467,6584.26629421,0.00017,2]
[329673688,1718562849523,10794.66310717,0.00017,2]
[329673689,1718562870234,2595.5553826,6.94e-05,2]
[329673691,1718562878450,20286.29635735,0.00017,2]
[329673692,1718562879687,948.88078832,0.00017,2]
[329673693,1718562879817,16351.79132417,0.00017,2]
[329673694,1718562894046,44290.60792975,0.00017,2]
[329673695,1718563109568,171.29275693,5e-05,2]
[329673697,1718563376325,-2825.45188421,0.00016144,2]
[329673698,1718563376393,-543.38783253,0.00016145,2]
[329673699,1718563376488,-254.0,0.00016148,2]
[329673700,1718563376543,-994.5220328,0.0001615,2]
[329673701,1718563376607,-206.05,0.0001699,3]
[329673702,1718563376690,-260007.89167002,0.00017,2]
[329673703,1718563376752,-15188.68545178,0.00017,2]
[329673704,1718563376806,-12218.06715795,0.00017,2]
[329673705,1718563396422,7699.82637061,5e-05,2]
[329673706,1718563403140,32128.88087246,5e-05,2]
[329673707,1718563403201,20974.44107027,5e-05,2]
[329673708,1718563810888,-160.68601906,0.000169,2]
[329673709,1718563810936,-2078.69224459,0.00017,2]
[329673710,1718563811011,-500.0,0.00017,2]
[329673711,1718563811110,-500.0,0.00017,2]
[329673712,1718563811166,-797.0,0.00017,2]
[329673713,1718563811230,-947.71950495,0.00017,2]
[329673714,1718563811314,-1810.07,0.00019452,2]
[329673715,1718563811356,-150.0,0.00020795,2]
[329673716,1718563811407,-155.21140818,0.0002082,2]
[329673717,1718563811462,-338.26,0.000217,2]
[329673718,1718563811511,-293.74,0.000217,2]
[329673719,1718563811574,-499.99,0.000217,2]
[329673720,1718563811669,-898.01671267,0.000219,2]
[329673721,1718563811721,-531.59,0.00022223,2]
[329673722,1718563811792,-249.60854914,0.00023404,2]
[329673723,1718563811858,-246.9,0.00023405,2]
[329673724,1718563811909,-4936.42,0.00023464,2]
[329673725,1718563811967,-173.47,0.00023486,2]
[329673726,1718563812023,-1000.0,0.00023589,2]
[329673727,1718563812075,-250.0,0.0002365,2]
[329673728,1718563812144,-356.52,0.00023742,2]
[329673729,1718563812242,-23890.0,0.00023793,2]
[329673730,1718563812282,-250.0,0.00023948,2]
[329673731,1718563812344,-162.68,0.00024198,2]
[329673732,1718563812392,-177.68,0.0002421,2]
[329673733,1718563812448,-156.44,0.00024384,2]
[329673734,1718563812496,-531.59,0.00024487,2]
[329673735,1718563812539,-250.0,0.00024829,2]
[329673736,1718563812591,-300.0,0.0002489,20]
[329673737,1718563812691,-424.35038744,0.0002498,2]
[329673738,1718563812766,-757.34625938,0.00024984,2]
[329673739,1718563812843,-750.28144909,0.00025,4]
[329673740,1718563812900,-180.0,0.00025722,2]
[329673741,1718563812984,-4936.42,0.00026204,2]
[329673742,1718563813031,-1294.59699274,0.00026367,2]
[329673743,1718563813080,-172.25,0.0002645,2]
[329673744,1718563813125,-1000.0,0.00026538,2]
[329673745,1718563813173,-151.0,0.00026643,4]
[329673746,1718563813218,-192.33,0.00026712,2]
[329673747,1718563813269,-531.59,0.00026751,2]
[329673748,1718563813306,-156851.15590062,0.0002688,2]
[329673749,1718563813354,-279.0125,0.000269,2]
[329673750,1718563813423,-12612.03752175,0.00027,2]
[329673751,1718563813481,-1583.7793182,0.00027,10]
[329673752,1718563813537,-151.0,0.00027187,2]
[329673753,1718563813603,-155.62112745,0.00027205,4]
[329673754,1718563813680,-716.0,0.000273,5]
[329673755,1718563813735,-2082.0,0.000273,5]
[329673756,1718563813888,3461.37082911,0.00027297,2]
[329673757,1718563819664,189.92070065,0.00027386,2]
[329673758,1718563820489,306.95,0.00027288,3]
[329673759,1718563823988,176.19130326,0.00027395,2]
[329673760,1718563826156,326.23244423,0.00027297,2]
[329673770,1718563832631,-239.95125061,0.00027297,2]
[329673771,1718563832643,-390.40222809,0.00027395,2]
[329673772,1718563832658,-443.29297293,0.00027395,2]
[329673773,1718563832669,-488.76158195,0.00027395,2]
[329673774,1718563832694,-25820.23968041,0.00027396,2]
[329673775,1718563832708,-195817.67131722,0.00027396,2]
[329673776,1718563832787,-3394.03843714,0.00027396,13]
[329673777,1718563833192,-2246.56936434,0.00027396,13]
[329673778,1718563833718,-299.99,0.00027396,13]
[329673779,1718563833773,-1101.00994531,0.00027396,13]
[329673798,1718563839115,-150.08770528,0.00027297,2]
[329673799,1718563839128,-153.73,0.00027391,2]
[329673800,1718563839167,-22.10729472,0.00027396,13]
[329673801,1718563839390,-18107.34809118,0.00027396,13]
[329673802,1718563839412,-39498.15308466,0.00027396,2]
[329673803,1718563839660,-210246.73411432,0.00027396,2]
[329673804,1718563839679,-801999.22717144,0.00027396,2]
[329673805,1718563839695,-69286.56134452,0.00027396,2]
[329673806,1718563839830,-5011.6,0.00027396,2]
[329673807,1718563839943,-259.79166223,0.00027396,2]
[329673808,1718563839989,-280.0,0.00027396,2]
[329673817,1718563841225,-2948.00079467,0.00027396,2]
[329673929,1718563843850,-163.56,0.00021211,2]
[329673932,1718563843880,-297.95,0.00027296,2]
[329673933,1718563843921,-38.49,0.00027396,2]
[329674096,1718563849653,-322134.35898645,0.00027396,2]
[329674111,1718563849907,-519.42499985,0.00027396,2]
[329674117,1718563849983,-2552.10686135,0.00027396,2]
[329674130,1718563850263,-74.89016524,0.00027396,2]
[329674134,1718563850330,-837.93466786,0.00027396,2]
[329674136,1718563850375,-1885.09003332,0.00027396,2]
[329674139,1718563850410,-293.88795758,0.00027396,2]
[329674153,1718563850862,-226.81877563,0.000201,2]
[329674154,1718563850883,-209.4692494,0.00027395,2]
[329674156,1718563850901,-18407.65300652,0.00027396,2]
[329674312,1718564168622,-2373.1700286,0.00016876,2]
[329674313,1718564168657,-155.0,0.00016876,2]
[329674314,1718564168691,-155.0,0.00016877,2]
[329674315,1718564168730,-155.0,0.00016877,2]
[329674316,1718564168767,-1220.40440166,0.00016877,2]
[329674317,1718564168817,-162.81149556,0.00016878,2]
[329674318,1718564168850,-155.0,0.00016878,2]
[329674319,1718564168883,-23.61407418,0.00016878,2]
[329674321,1718564961148,-291.81763565,0.00012526,2]
[329674322,1718564961189,-532.05845602,0.00012527,2]
[329674323,1718564961221,-507.31737144,0.00012527,2]
[329674324,1718564961252,-155.0,0.00012527,2]
[329674325,1718564961280,-155.0,0.00012528,2]
[329674326,1718564961311,-538.33838683,0.00012529,2]
[329674327,1718564961365,-355.34901942,0.00012529,2]
[329674328,1718564961402,-380.27373064,0.0001253,2]
[329674331,1718565032958,-519.37400188,0.00012521,2]
[329674332,1718565032969,-1000.0,0.00012521,2]
[329674333,1718565032983,-536.866205,0.00012521,2]
[329674334,1718565032999,-155.0,0.00012522,2]
[329674335,1718565033020,-3090.28989279,0.00012522,2]
[329674336,1718565033173,-13.39032383,0.00012522,2]
[329674337,1718565033192,-529.138446,0.00012523,2]
[329674338,1718565033211,-529.1138474,0.00012524,2]
[329674339,1718565033222,-233.25846936,0.0001253,2]
[329674340,1718565033234,-1002.19792775,0.00012656,2]
[329674341,1718565033245,-2555.21259535,0.00012659,2]
[329674342,1718565033260,-3958.65,0.00015,2]
[329674343,1718565033272,-499.99,0.00015,2]
[329674344,1718565033296,-621.86765706,0.00015,2]
[329674345,1718565033307,-5418.26,0.00016116,2]
[329674346,1718565033507,-300.0,0.00016751,2]
[329674347,1718565033518,-8223.42337339,0.00016878,2]
[329674348,1718565033529,-1043.9175175,0.00016878,2]
[329674349,1718565033542,-155.0,0.00016878,2]
[329674350,1718565033557,-1239.85597037,0.00016878,2]
[329674351,1718565033602,-22566.71410652,0.00016878,2]
[329674353,1718565038974,-499.40340335,0.0001252,2]
[329674354,1718565038991,-751.0673334,0.0001252,2]
[329674355,1718565039008,-11217.98561881,0.00016878,2]
[329674356,1718565039029,-2172.49144721,0.00016896,2]
[329674357,1718565039048,-598.5538928,0.00017259,2]
[329674358,1718565039059,-163.56,0.00018565,2]
[329674359,1718565039074,-226.81877563,0.000201,2]
[329674360,1718565039097,-603.37,0.00020408,2]
[329674361,1718565039125,-1250.0,0.00021,2]
[329674362,1718565039137,-500.0,0.000219,2]
[329674363,1718565039150,-379.13587,0.00022192,2]
[329674364,1718565039174,-169.26,0.00022251,2]
[329674365,1718565039190,-2780.02,0.00022266,2]
[329674366,1718565039210,-162.68,0.00022295,2]
[329674367,1718565039227,-269.54,0.00022312,2]
[329674368,1718565039240,-1223.27,0.00022326,2]
[329674369,1718565039256,-121.84360528,0.00022337,2]
[329674370,1718565039274,-214.38639472,0.00022337,2]
[329674371,1718565039288,-250.0,0.00022509,2]
[329674372,1718565039308,-603.37,0.00022672,2]
[329674373,1718565039320,-250.0,0.00022708,2]
[329674374,1718565039345,-1300.0,0.00023,2]
[329674375,1718565039368,-379.13587,0.00023014,2]
[329674376,1718565039382,-171.834,0.00023014,2]
[329674377,1718565039396,-1000.0,0.00023088,2]
[329674378,1718565039414,-379.13587,0.00023836,2]
[329674379,1718565039430,-153.2,0.00024384,2]
[329674380,1718565039442,-599.15,0.00024384,2]
[329674381,1718565039467,-180.0,0.00024395,2]
[329674382,1718565039482,-379.13587,0.00024658,2]
[329674383,1718565039496,-500.0,0.000247,2]
[329674384,1718565039509,-453.25940463,0.00024714,2]
[329674385,1718565039535,-603.37,0.00024936,2]
[329674386,1718565039557,-245.43454946,0.00024991,2]
[329674387,1718565039577,-153.23259019,0.00025006,2]
[329674388,1718565039636,-1085.8962,0.00025006,2]
[329674389,1718565039691,-1540.89120981,0.00025006,2]
[329674390,1718565039704,-379.13587,0.00025479,2]
[329674391,1718565039728,-160.27,0.00025484,2]
[329674392,1718565039742,-157.20675682,0.00025974,2]
[329674393,1718565039789,-842.79324318,0.00025974,2]
[329674394,1718565039847,-2500.0,0.00026,2]
[329674395,1718565039860,-151.0,0.00026105,2]
[329674396,1718565039881,-923.721,0.00026239,2]
[329674397,1718565039893,-379.13587,0.00026301,2]
[329674398,1718565039905,-1298.78853938,0.0002638,2]
[329674399,1718565039920,-299.0596178,0.0002638,7]
[329674400,1718565039936,-626.1102705,0.00026657,2]
[329674401,1718565039971,-172.25,0.00026787,2]
[329674402,1718565040032,-379.13587,0.00027123,2]
[329674403,1718565040074,-383.3117566,0.00027139,2]
[329674404,1718565040086,-603.37,0.000272,2]
[329674405,1718565040107,-414.50144157,0.00027245,2]
[329674406,1718565040134,-150.08770528,0.00027296,2]
[329674407,1718565040169,-423.28471301,0.00027296,2]
[329674408,1718565040194,-184.29208948,0.00027296,2]
[329674409,1718565040209,-1519.15982518,0.00027296,2]
[329674410,1718565040252,-1298.31390285,0.00027296,2]
[329674411,1718565040292,-4105.26793015,0.00027296,2]
[329674412,1718565040305,-175.36156422,0.00027297,2]
[329674413,1718565040317,-195.60295777,0.00027297,2]
[329674414,1718565040338,-332.5139031,0.00027385,2]
[329674415,1718565040362,-332.5139031,0.00027385,2]
[329674416,1718565040397,-332.5139031,0.00027385,2]
[329674417,1718565040419,-423.28471299,0.0002739,2]
[329674418,1718565040442,-195.60295776,0.0002739,2]
[329674419,1718565040456,-152.73,0.00027392,2]
[329674420,1718565040475,-150.0,0.00027394,2]
[329674421,1718565040500,-508.81409559,0.00027394,2]
[329674422,1718565040541,-394.49590734,0.00027394,2]
[329674423,1718565040586,-166.44843202,0.00027394,2]
[329674424,1718565040597,-12585.53156635,0.00027395,13]
[329674425,1718565040609,-38996.20193066,0.00027395,2]
[329674426,1718565040640,-1579.841844,0.00027395,2]
[329674427,1718565040682,-630.32,0.00027395,2]
[329674428,1718565040715,-714641.89050685,0.00027395,2]
[329674430,1718565040736,-285358.10949315,0.00027395,2]
[329674432,1718565040753,-446.9083603,0.00027395,2]
[329674435,1718565040796,-753.50015,0.00027395,2]
[329674437,1718565040838,-2279.80191638,0.00027395,2]
[329674439,1718565040864,-865.14137373,0.00027395,2]
[329674486,1718565042040,-935.11650011,0.00027395,2]
[329674504,1718565042293,-1786.75276464,0.00027395,2]
[329674523,1718565042563,-845.39999995,0.00027395,2]
[329674532,1718565042680,-6075.0,0.00027395,2]
[329674534,1718565042694,-700.0,0.00027395,2]
[329674537,1718565042716,-310.33447196,0.00027395,2]
[329674546,1718565042855,-726.25927746,0.00027395,2]
[329674623,1718565044004,-564.56499991,0.00027395,2]
[329674626,1718565044029,-819.68910007,0.00027395,2]
[329674639,1718565044267,-7399.99999996,0.00027395,2]
[329674642,1718565044331,-286.654,0.00027395,2]
[329674644,1718565044348,-733.43999999,0.00027395,2]
[329674646,1718565044366,-9290.26806888,0.00027395,2]
[329674649,1718565044418,-1385.68,0.00027395,2]
[329674651,1718565044455,-1373.87553465,0.00027395,2]
[329674653,1718565044470,-273868.33691188,0.00027395,2]
[329674655,1718565044484,-3468.12070833,0.00027395,2]
[329674657,1718565044501,-7279.73406786,0.00027395,2]
[329674659,1718565044516,-5781.22256313,0.00027395,2]
[329674661,1718565044530,-3964.25809127,0.00027395,2]
[329674666,1718565044568,-4191.63979407,0.00027395,2]
[329674669,1718565044613,-412.1753019,0.00027395,2]
[329674670,1718565044628,-296.13443335,0.00027395,2]
[329674672,1718565044645,-866498.69289049,0.00027395,2]
[329674675,1718565044658,-12140.63949168,0.00027395,2]
[329674678,1718565044694,-2093.79820878,0.00027395,2]
[329674681,1718565044708,-19893.89224472,0.00027395,2]
[329674683,1718565044734,-866.09290291,0.00027395,2]
[329674685,1718565044749,-1301.90749695,0.00027395,2]
[329674687,1718565044779,-2776.36303042,0.00027395,2]
[329674689,1718565044794,-605.70812265,0.00027395,2]
[329674692,1718565044814,-2435.38767799,0.00027395,2]
[329674694,1718565044828,-357.69482547,0.00027395,2]
[329674698,1718565044881,-1053.98522685,0.00027395,2]
[329674700,1718565044900,-764.83570451,0.00027395,2]
[329674702,1718565044914,-1198.38456516,0.00027395,2]
[329674704,1718565044933,-14744.66601746,0.00027395,2]
[329674706,1718565044956,-24023.35393444,0.00027395,2]
[329674708,1718565044972,-4388.0042453,0.00027395,2]
[329674711,1718565044998,-647.5444773,0.00027395,2]
[329674713,1718565045019,-1098.83817205,0.00027395,2]
[329674715,1718565045035,-2864.36409003,0.00027395,2]
[329674717,1718565045063,-595.805002,0.00027395,2]
[329674719,1718565045076,-118334.92319555,0.00027395,2]
[329674721,1718565045096,-1588.99200365,0.00027395,2]
[329674723,1718565045110,-313.46111359,0.00027395,2]
[329674727,1718565045144,-600.42032532,0.00027395,2]
[329674729,1718565045166,-3855.78543275,0.00027395,2]
[329674731,1718565045185,-7916.00000007,0.00027395,2]
[329674733,1718565045210,-30605.72282231,0.00027395,2]
[329674735,1718565045233,-4445.23740939,0.00027395,2]
[329674738,1718565045291,-72500.0,0.00027395,2]
[329674741,1718565045318,-1491.09837849,0.00027395,2]
[329674742,1718565045333,-10813.14,0.00027395,2]
[329674745,1718565045348,-161504.31559364,0.00027395,2]
[329674747,1718565045363,-668.90836217,0.00027395,2]
[329674748,1718565045383,-3091170.4001578,0.00027395,2]
[329674753,1718565045492,-772.1299993,0.00027395,2]
[329674755,1718565045507,-716.30002,0.00027395,2]
[329674757,1718565045524,-348.04079335,0.00027395,2]
[329674759,1718565045553,-893.97581551,0.00027395,2]
[329674763,1718565045605,-840.5182671,0.00027395,2]
[329674765,1718565045626,-322140.98141089,0.00027395,2]
[329674767,1718565045648,-33924.73549686,0.00027395,2]
[329674770,1718565045663,-339.8579497,0.00027395,2]
[329674776,1718565045790,-34519.00130308,0.00027395,2]
[329674778,1718565045813,-2340.0,0.00027395,2]
[329674875,1718565047464,-365.57926024,0.00027394,2]
[329674878,1718565047478,-105.30689236,0.00027394,2]
[329674880,1718565047494,-2739.81114812,0.00027395,2]
[329674882,1718565047508,-445.81177416,0.00027395,2]
[329674884,1718565047531,-1080.26617552,0.00027395,2]
[329674909,1718565047963,-486.55278223,0.00027394,2]
[329674922,1718565048130,-50.31342277,0.00027394,2]
[329674924,1718565048147,-205.09827644,0.00027394,2]
[329674984,1718565051580,-159.9675004,0.00027296,2]
[329674985,1718565051598,-418.57870781,0.00027296,2]
[329674986,1718565051625,-425.14027627,0.00027393,2]
[329674987,1718565051659,-276.54289594,0.00027393,2]
[329674988,1718565051671,-396.84910358,0.00027393,2]
[329674989,1718565051683,-48.56489723,0.00027394,2]
[329674990,1718565051694,-228.22294932,0.00027394,2]
[329674991,1718565051709,-355.34901942,0.00027394,2]
[329674992,1718565051732,-615441.07823205,0.00027395,2]
[329675053,1718565389072,-155.0,0.000124,2]
[329675054,1718565389137,-155.0,0.00012401,2]
[329675055,1718565389181,-155.0,0.00012401,2]
[329675056,1718565389232,-155.0,0.00012402,2]
[329675057,1718565389289,-2339.1107069,0.00012402,2]
[329675058,1718565389342,-155.0,0.00012403,2]
[329675059,1718565389414,-3068.86718638,0.00012403,2]
[329675060,1718565389464,-2373.1700286,0.00012403,2]
[329675061,1718565389523,-5588.69804539,0.00012403,2]
[329675062,1718565389578,-2353.46210869,0.00012404,2]
[329675063,1718565389634,-155.0,0.00012404,2]
[329675064,1718565389682,-1068.73915113,0.00012405,2]
[329675065,1718565389749,-536.72357785,0.00012405,2]
[329675066,1718565389812,-4449.51330229,0.00012406,2]
[329675067,1718565389874,-839.60986752,0.00012408,2]
[329675068,1718565389929,-150.0,0.00012411,2]
[329675069,1718565390156,-4214.2835,0.00012427,2]
[329675070,1718565391053,155.0,0.000124,2]
[329675076,1718565613119,180.0,0.00027387,120]
[329675077,1718565654382,-4295.75794545,0.00012513,2]
[329675078,1718565654457,-155.0,0.00012513,2]
[329675079,1718565654509,-2196.60550716,0.00012513,2]
[329675080,1718565654558,-491.10975792,0.00012513,2]
[329675081,1718565654611,-269.02757658,0.00012514,2]
[329675082,1718565654680,-646.43853102,0.00012514,2]
[329675083,1718565654746,-156.86487315,0.00012514,2]
[329675084,1718565654795,-155.0,0.00012514,2]
[329675085,1718565654844,-176.67978889,0.00012514,2]
[329675086,1718565654901,-209.74183051,0.00012515,2]
[329675087,1718565654953,-163.46950476,0.00012515,2]
[329675088,1718565655006,-155.0,0.00012515,2]
[329675089,1718565655066,-283.24040768,0.00012516,2]
[329675090,1718565655114,-155.0,0.00012517,2]
[329675091,1718565655164,-317.17607731,0.00012517,2]
[329675092,1718565655216,-258.37137548,0.00012517,2]
[329675093,1718565655260,-391.41536122,0.00012518,2]
[329675094,1718565655346,-4619.93338365,0.00012518,2]
[329675095,1718565655425,-2825.45188421,0.00012519,2]
[329675096,1718565655488,-1220.40440166,0.00012519,2]
[329675097,1718565655539,-155.0,0.00012519,2]
[329675098,1718565655592,-297.09391661,0.00012519,2]
[329675099,1718565655643,-307.75042507,0.0001252,2]
[329675100,1718565655713,-1626.58334271,0.0001252,2]
[329675101,1718565655806,-299.75188144,0.0001253,2]
[329675102,1718565655881,-576.12188171,0.0001253,2]
[329675103,1718565830676,-507.31737144,0.00013987,2]
[329675104,1718565830728,-201.86291814,0.00013987,2]
[329675105,1718565830798,-155.0,0.00013988,2]
[329675106,1718565830853,-155.0,0.00013989,2]
[329675107,1718565830900,-155.0,0.00013989,2]
[329675108,1718565830964,-339.07696494,0.00013989,2]
[329675109,1718565831009,-155.0,0.00013989,2]
[329675110,1718565831046,-538.33838683,0.00013996,2]
[329675111,1718565831085,-155.0,0.00013997,2]
[329675112,1718565831145,-1043.22574404,0.00014,2]
[329675113,1718565831194,-150.0,0.00014999,2]
[329675114,1718565831247,-35002.08071052,0.00015,2]
[329675115,1718565844961,1043.9175175,0.00014,2]
[329675116,1718565865117,881.83176103,0.00014,2]
[329675125,1718566232658,-155.0,0.00014989,2]
[329675126,1718566232696,-4449.51330229,0.00014989,2]
[329675127,1718566232708,-5588.69804539,0.0001499,2]
[329675128,1718566232736,-1250.47073675,0.0001499,2]
[329675129,1718566232748,-5217.21187865,0.00015,2]
[329675130,1718566232962,-14865.07064724,0.00015,2]
[329675131,1718566233637,-666.28,0.00015,2]
[329675132,1718566233759,-5430.9709745,0.00015,2]
[329675133,1718566233771,-155.0,0.00016711,2]
[329675134,1718566233782,-179.61,0.00016712,2]
[329675135,1718566233808,-2488.75759572,0.00017,2]
[329675136,1718566233840,-1808.34204761,0.00017258,2]
[329675137,1718566233865,-499.99,0.00017808,2]
[329675138,1718566233877,-335.95,0.00017808,2]
[329675139,1718566233901,-155.0,0.00019725,2]
[329675140,1718566233920,-226.81877563,0.000201,2]
[329675141,1718566233931,-553.91,0.00020299,2]
[329675142,1718566233958,-180.0,0.00020541,2]
[329675143,1718566233971,-644.01824509,0.00020546,2]
[329675144,1718566233981,-5000.0,0.00021,2]
[329675145,1718566233992,-1250.0,0.00021,2]
[329675146,1718566234005,-500.0,0.000219,2]
[329675147,1718566234017,-171.58,0.00021978,2]
[329675148,1718566234030,-791.61101714,0.00022,2]
[329675149,1718566234057,-1000.0,0.00022124,2]
[329675150,1718566234068,-1059.43,0.0002217,2]
[329675151,1718566234079,-841.79,0.00022207,2]
[329675152,1718566234090,-250.0,0.00022219,2]
[329675153,1718566234104,-1643.0691434,0.00022224,2]
[329675154,1718566234124,-3949.36502979,0.00022224,2]
[329675156,1718566239108,-17388.59582681,0.00022224,2]
[329675157,1718566239129,-160.27,0.00022504,2]
[329675158,1718566239147,-553.91,0.00022563,2]
[329675159,1718566239160,-269.54,0.00022771,2]
[329675160,1718566239177,-250.0,0.00022884,2]
[329675161,1718566239189,-5719.31851457,0.00022917,2]
[329675162,1718566239315,-4280.68148543,0.00022917,2]
[329675163,1718566239332,-1300.0,0.00023,2]
[329675164,1718566239378,-250.0,0.00023062,2]